fUSD/lending_fUSD_20240725
["ID","MTS","AMOUNT","RATE_DAILY","PERIOD"]
[333169599,1721910631938,-758.46063196,9.896e-05,2]
[333169600,1721910631949,-715.22272661,9.896e-05,2]
[333169601,1721910631964,-1731.28504997,9.896e-05,2]
[333169602,1721910631992,-1137.52609305,9.896e-05,2]
[333169603,1721910632008,-27892.52566807,9.896e-05,2]
[333169604,1721910632018,-7569.30838559,9.896e-05,2]
[333169605,1721910632028,-20365.96174232,9.896e-05,2]
[333169606,1721910632038,-291.58113767,9.896e-05,2]
[333169607,1721910632047,-158.86061706,9.896e-05,2]
[333169608,1721910632056,-200.76537851,9.896e-05,2]
[333169609,1721910632066,-155.42795005,9.896e-05,2]
[333169610,1721910632075,-38365.675,0.00010183,2]
[333169611,1721910632084,-300.0,0.00010292,2]
[333169612,1721910632093,-150.0,0.00010292,2]
[333169613,1721910632103,-3283.0,0.00010293,2]
[333169614,1721910632112,-288.25,0.00010293,2]
[333169615,1721910632121,-1994.0,0.00010293,2]
[333169616,1721910632131,-5121.0,0.00010293,2]
[333169617,1721910632141,-1651.503,0.00010293,2]
[333169619,1721910632150,-1271.614,0.00010293,2]
[333169621,1721910632161,-1669.0,0.00010293,2]
[333169623,1721910632170,-974.62,0.00010463,2]
[333169625,1721910632180,-161.85188743,0.000106,2]
[333169627,1721910632189,-500.0,0.00010684,2]
[333169628,1721910632198,-1000.0,0.0001075,2]
[333169629,1721910632208,-7473.28152809,0.0001075,2]
[333169630,1721910632217,-1000.0,0.0001077,2]
[333169631,1721910632227,-1000.0,0.0001078,2]
[333169633,1721910632237,-1000.0,0.00010793,2]
[333169635,1721910632248,-1000.0,0.000108,2]
[333169637,1721910632262,-1369.6340373,0.0001085,2]
[333169639,1721910632271,-1049.21590846,0.0001085,2]
[333169640,1721910632282,-2815.18911241,0.0001085,2]
[333169641,1721910632292,-448.93569241,0.0001085,2]
[333169642,1721910632301,-3000.0,0.0001085,2]
[333169643,1721910632311,-500.0,0.0001087,2]
[333169644,1721910632320,-11711.83208327,0.0001089,2]
[333169645,1721910632330,-841.52348433,0.00010897,2]
[333169646,1721910632340,-841.52348433,0.00010898,2]
[333169647,1721910632350,-841.52348433,0.00010899,2]
[333169648,1721910632359,-220.13,0.00010904,2]
[333169649,1721910632369,-1013.64867623,0.00010957,2]
[333169650,1721910632379,-500.0,0.00010959,2]
[333169651,1721910632389,-200.0,0.00010959,2]
[333169652,1721910632399,-200.0,0.00010959,2]
[333169653,1721910632409,-2468.96,0.00010959,2]
[333169654,1721910632418,-150.0,0.00010959,2]
[333169655,1721910632428,-1005.53,0.00010959,5]
[333169656,1721910632437,-250.0,0.00010959,2]
[333169657,1721910632447,-174.77,0.00010959,2]
[333169658,1721910632456,-873.89,0.00010959,2]
[333169659,1721910632465,-419.78404182,0.00010959,2]
[333169660,1721910632475,-436.75551277,0.00010978,2]
[333169661,1721910632485,-500.0,0.00010978,2]
[333169662,1721910632495,-500.0,0.00010978,2]
[333169663,1721910632510,-633.08344229,0.00010978,2]
[333169664,1721910632520,-500.0,0.00010978,2]
[333169665,1721910632529,-500.0,0.00010978,2]
[333169666,1721910632538,-500.0,0.00010978,2]
[333169667,1721910632547,-500.0,0.00010978,2]
[333169668,1721910632556,-500.0,0.00010978,2]
[333169669,1721910632566,-500.0,0.00010978,2]
[333169670,1721910632575,-500.0,0.00010978,2]
[333169671,1721910632584,-500.0,0.00010978,2]
[333169672,1721910632593,-500.0,0.00010978,2]
[333169673,1721910632603,-500.0,0.00010978,2]
[333169674,1721910632612,-500.0,0.00010978,2]
[333169675,1721910632621,-500.0,0.00010978,2]
[333169676,1721910632631,-500.0,0.00010978,2]
[333169677,1721910632640,-500.0,0.00010978,2]
[333169678,1721910632649,-500.0,0.00010978,2]
[333169679,1721910632658,-500.0,0.00010978,2]
[333169680,1721910632668,-500.0,0.00010978,2]
[333169681,1721910632677,-500.0,0.00010978,2]
[333169682,1721910632686,-366.44415292,0.00010978,2]
[333169683,1721910632695,-500.0,0.00010978,2]
[333169684,1721910632704,-500.0,0.00010978,2]
[333169685,1721910632713,-500.0,0.00010978,2]
[333169686,1721910632722,-500.0,0.00010978,2]
[333169687,1721910632736,-429.23634182,0.00010978,2]
[333169688,1721910632745,-500.0,0.00010978,2]
[333169689,1721910632760,-258.11,0.00010978,2]
[333169690,1721910632770,-500.0,0.00010978,2]
[333169691,1721910632779,-498.79137197,0.00010978,2]
[333169692,1721910632788,-500.0,0.00010978,2]
[333169693,1721910632799,-270.05,0.00010978,2]
[333169694,1721910632809,-509.34,0.00010978,2]
[333169695,1721910632818,-500.0,0.00010978,2]
[333169696,1721910632828,-500.0,0.00010978,2]
[333169697,1721910632837,-500.0,0.00010978,2]
[333169698,1721910632847,-601.64,0.00010978,2]
[333169699,1721910632856,-500.0,0.00010978,2]
[333169700,1721910632865,-539.72,0.00010978,2]
[333169701,1721910632874,-518.58,0.00010978,2]
[333169702,1721910632884,-500.0,0.00010978,2]
[333169703,1721910632894,-500.0,0.00010978,2]
[333169704,1721910632904,-390.90123132,0.00010978,2]
[333169705,1721910632917,-109.09876868,0.00010978,2]
[333169706,1721910632927,-500.0,0.00010978,2]
[333169707,1721910632936,-500.0,0.00010978,2]
[333169708,1721910632945,-500.0,0.00010978,2]
[333169709,1721910632954,-500.0,0.00010978,2]
[333169710,1721910632963,-220.93,0.00010978,2]
[333169711,1721910632972,-500.0,0.00010978,2]
[333169712,1721910632981,-500.0,0.00010978,2]
[333169713,1721910632991,-600.29,0.00010978,2]
[333169714,1721910633005,-500.0,0.00010978,2]
[333169715,1721910633015,-500.0,0.00010978,2]
[333169716,1721910633024,-917.28,0.00010978,2]
[333169717,1721910633034,-855.68,0.00010978,2]
[333169718,1721910633043,-500.0,0.00010978,2]
[333169719,1721910633053,-500.0,0.00010978,2]
[333169720,1721910633063,-500.0,0.00010978,2]
[333169721,1721910633072,-500.0,0.00010978,2]
[333169722,1721910633082,-647.09493787,0.00010978,2]
[333169723,1721910633091,-3117.15,0.00010978,2]
[333169724,1721910633100,-500.0,0.00010978,2]
[333169725,1721910633110,-500.0,0.00010978,2]
[333169726,1721910633119,-643.93,0.00010978,2]
[333169727,1721910633128,-500.0,0.00010978,2]
[333169728,1721910633137,-500.0,0.00010978,2]
[333169729,1721910633146,-500.0,0.00010978,2]
[333169730,1721910633156,-500.0,0.00010978,2]
[333169731,1721910633165,-364.93,0.00010978,2]
[333169732,1721910633174,-500.0,0.00010978,2]
[333169733,1721910633183,-500.0,0.00010978,2]
[333169734,1721910633192,-645.28,0.00010978,2]
[333169735,1721910633201,-500.0,0.00010978,2]
[333169736,1721910633211,-611.5,0.00010978,2]
[333169737,1721910633220,-500.0,0.00010978,2]
[333169738,1721910633229,-500.0,0.00010978,2]
[333169739,1721910633238,-500.0,0.00010978,2]
[333169740,1721910633252,-541.32,0.00010978,2]
[333169741,1721910633261,-514.94,0.00010978,2]
[333169742,1721910633270,-501.7562976,0.00010978,2]
[333169743,1721910633280,-500.0,0.00010978,2]
[333169744,1721910633289,-500.0,0.00010978,2]
[333169745,1721910633299,-500.0,0.00010978,2]
[333169746,1721910633308,-500.0,0.00010978,2]
[333169747,1721910633318,-500.0,0.00010978,2]
[333169748,1721910633327,-684.52,0.00010978,2]
[333169749,1721910633337,-500.0,0.00010978,2]
[333169750,1721910633347,-500.0,0.00010978,2]
[333169751,1721910633357,-500.0,0.00010978,2]
[333169752,1721910633367,-500.0,0.00010978,2]
[333169753,1721910633377,-500.0,0.00010978,2]
[333169754,1721910633386,-500.0,0.00010978,2]
[333169755,1721910633395,-500.0,0.00010978,2]
[333169756,1721910633404,-500.0,0.00010978,2]
[333169757,1721910633414,-500.0,0.00010978,2]
[333169758,1721910633424,-500.0,0.00010978,2]
[333169759,1721910633434,-500.54115217,0.00010978,2]
[333169760,1721910633444,-188.44149401,0.00010978,2]
[333169761,1721910633454,-500.0,0.00010978,2]
[333169762,1721910633464,-484.18211709,0.00010978,2]
[333169763,1721910633474,-500.0,0.00010978,2]
[333169764,1721910633484,-500.0,0.00010978,2]
[333169765,1721910633494,-500.0,0.00010978,2]
[333169766,1721910633508,-500.0,0.00010978,2]
[333169767,1721910633518,-500.0,0.00010978,2]
[333169768,1721910633528,-500.0,0.00010978,2]
[333169769,1721910633539,-500.0,0.00010978,2]
[333169770,1721910633550,-500.0,0.00010978,2]
[333169771,1721910633560,-500.0,0.00010978,2]
[333169772,1721910633570,-500.0,0.00010978,2]
[333169773,1721910633581,-500.0,0.00010978,2]
[333169774,1721910633591,-500.0,0.00010978,2]
[333169775,1721910633602,-531.3,0.00010978,2]
[333169776,1721910633613,-500.0,0.00010978,2]
[333169777,1721910633623,-500.0,0.00010978,2]
[333169778,1721910633633,-500.0,0.00010978,2]
[333169779,1721910633642,-500.0,0.00010978,2]
[333169780,1721910633653,-500.0,0.00010978,2]
[333169781,1721910633662,-500.0,0.00010978,2]
[333169782,1721910633672,-500.0,0.00010978,2]
[333169783,1721910633682,-267.77054585,0.00010978,2]
[333169784,1721910633691,-369.68022024,0.00010978,2]
[333169785,1721910633701,-284.51092208,0.00010978,2]
[333169786,1721910633710,-500.0,0.00010978,2]
[333169787,1721910633720,-500.0,0.00010978,2]
[333169788,1721910633730,-501.57139609,0.00010978,2]
[333169789,1721910633744,-500.0,0.00010978,2]
[333169790,1721910633759,-82.53585869,0.00010978,2]
[333169791,1721910633774,-417.46414131,0.00010978,2]
[333169792,1721910633785,-400.45585869,0.00010978,2]
[333169793,1721910633810,-99.54414131,0.00010978,2]
[333169794,1721910633821,-229.10141869,0.00010978,2]
[333169796,1721910637812,-305.44142731,9.896e-05,2]
[333169797,1721910637823,-620.16359687,0.00010758,2]
[333169798,1721910637833,-383.33858131,0.00010978,2]
[333169799,1721910637843,-500.0,0.00010978,2]
[333169800,1721910637852,-500.0,0.00010978,2]
[333169801,1721910637861,-500.0,0.00010978,2]
[333169802,1721910637871,-500.0,0.00010978,2]
[333169803,1721910637880,-500.0,0.00010978,2]
[333169804,1721910637890,-500.0,0.00010978,2]
[333169805,1721910637900,-500.0,0.00010978,2]
[333169806,1721910637910,-500.0,0.00010978,2]
[333169807,1721910637919,-321.73418785,0.00010978,2]
[333169808,1721910637929,-500.0,0.00010978,2]
[333169809,1721910637939,-500.0,0.00010978,2]
[333169810,1721910637949,-389.64,0.00010978,2]
[333169811,1721910637958,-514.25,0.00010978,2]
[333169812,1721910637967,-500.0,0.00010978,2]
[333169813,1721910637976,-266.31483415,0.00010978,2]
[333169814,1721910637986,-190.7818521,0.00010978,2]
[333169816,1721910638702,-309.2181479,0.00010978,2]
[333169817,1721910638711,-500.0,0.00010978,2]
[333169818,1721910638720,-500.0,0.00010978,2]
[333169819,1721910638730,-500.0,0.00010978,2]
[333169820,1721910638741,-500.0,0.00010978,2]
[333169821,1721910638754,-500.0,0.00010978,2]
[333169822,1721910638763,-500.0,0.00010978,2]
[333169823,1721910638773,-331.28,0.00010978,2]
[333169824,1721910638782,-500.0,0.00010978,2]
[333169825,1721910638791,-783.49,0.00010978,2]
[333169826,1721910638803,-500.0,0.00010978,2]
[333169827,1721910638813,-500.0,0.00010978,2]
[333169828,1721910638822,-437.19993211,0.00010979,2]
[333169829,1721910638831,-500.0,0.00010979,2]
[333169830,1721910638840,-500.0,0.00010979,2]
[333169831,1721910638849,-264.46,0.00010979,2]
[333169832,1721910638858,-500.0,0.00010979,2]
[333169833,1721910638867,-307.25,0.00010979,2]
[333169834,1721910638876,-500.0,0.00010979,2]
[333169835,1721910638886,-500.0,0.00010979,2]
[333169836,1721910638895,-500.0,0.00010979,2]
[333169837,1721910638904,-500.0,0.00010979,2]
[333169838,1721910638913,-500.0,0.00010979,2]
[333169839,1721910638922,-397.93,0.00010979,2]
[333169840,1721910638931,-500.0,0.00010979,2]
[333169841,1721910638941,-500.0,0.00010979,2]
[333169842,1721910638950,-500.0,0.00010979,2]
[333169843,1721910638959,-500.0,0.00010979,2]
[333169844,1721910638968,-635.32,0.00010979,2]
[333169845,1721910638977,-464.68488091,0.00010979,2]
[333169846,1721910638986,-500.0,0.00010979,2]
[333169847,1721910638995,-500.0,0.00010979,2]
[333169848,1721910639009,-227.29811722,0.00010979,2]
[333169849,1721910639019,-636.98,0.00010979,2]
[333169850,1721910639028,-574.24,0.00010979,2]
[333169851,1721910639037,-500.0,0.00010979,2]
[333169852,1721910639047,-500.0,0.00010979,2]
[333169853,1721910639056,-500.0,0.00010979,2]
[333169854,1721910639065,-571.15862645,0.00010979,2]
[333169855,1721910639074,-500.0,0.00010979,2]
[333169856,1721910639083,-500.0,0.00010979,2]
[333169857,1721910639093,-500.0,0.00010979,2]
[333169858,1721910639103,-500.0,0.00010979,2]
[333169859,1721910639113,-500.0,0.00010979,2]
[333169860,1721910639123,-500.0,0.00010979,2]
[333169861,1721910639133,-500.0,0.00010979,2]
[333169862,1721910639142,-500.0,0.00010979,2]
[333169863,1721910639151,-500.0,0.00010979,2]
[333169864,1721910639161,-183.96397841,0.00010979,2]
[333169865,1721910639170,-500.0,0.00010979,2]
[333169866,1721910639179,-500.0,0.00010979,2]
[333169867,1721910639189,-500.0,0.00010979,2]
[333169868,1721910639198,-500.0,0.00010979,2]
[333169869,1721910639208,-500.0,0.00010979,2]
[333169870,1721910639217,-500.0,0.00010979,2]
[333169871,1721910639226,-500.0,0.00010979,2]
[333169872,1721910639235,-500.0,0.00010979,2]
[333169873,1721910639244,-500.0,0.00010979,2]
[333169874,1721910639256,-500.0,0.00010979,2]
[333169875,1721910639265,-608.48489407,0.00010979,2]
[333169876,1721910639277,-350.13943815,0.00010979,2]
[333169877,1721910639286,-500.0,0.00010979,2]
[333169878,1721910639295,-500.0,0.00010979,2]
[333169879,1721910639305,-500.0,0.00010979,2]
[333169880,1721910639315,-335.62734368,0.00010979,2]
[333169881,1721910639324,-500.0,0.00010979,2]
[333169882,1721910639333,-543.32,0.00010979,2]
[333169883,1721910639342,-500.0,0.00010979,2]
[333169884,1721910639351,-470.3996896,0.00010979,2]
[333169885,1721910639361,-500.0,0.00010979,2]
[333169886,1721910639370,-500.0,0.00010979,2]
[333169887,1721910639379,-503.27536725,0.00010979,2]
[333169888,1721910639388,-350.77118171,0.00010979,2]
[333169889,1721910639397,-500.0,0.00010979,2]
[333169890,1721910639406,-500.0,0.00010979,2]
[333169891,1721910639415,-500.0,0.00010979,2]
[333169892,1721910639424,-516.03,0.00010979,2]
[333169893,1721910639434,-500.0,0.00010979,2]
[333169894,1721910639443,-516.03,0.00010979,2]
[333169895,1721910639452,-597.36,0.00010979,2]
[333169896,1721910639461,-500.0,0.00010979,2]
[333169897,1721910639470,-226.79731112,0.00010979,2]
[333169898,1721910639479,-500.0,0.00010979,2]
[333169899,1721910639488,-254.76378191,0.00010979,2]
[333169900,1721910639497,-500.0,0.00010979,2]
[333169901,1721910639510,-590.37,0.00010979,2]
[333169902,1721910639519,-590.37,0.00010979,2]
[333169903,1721910639529,-500.0,0.00010979,2]
[333169904,1721910639538,-500.0,0.00010979,2]
[333169905,1721910639547,-414.59,0.00010979,2]
[333169906,1721910639557,-500.0,0.00010979,2]
[333169907,1721910639566,-248.69,0.00010979,2]
[333169908,1721910639575,-677.14,0.00010979,2]
[333169909,1721910639584,-677.14,0.00010979,2]
[333169910,1721910639594,-170.3,0.00010979,2]
[333169911,1721910639604,-500.0,0.00010979,2]
[333169912,1721910639613,-500.0,0.00010979,2]
[333169913,1721910639622,-219.91385078,0.00010979,2]
[333169914,1721910639631,-226.61,0.00010979,2]
[333169915,1721910639640,-636.2,0.00010979,2]
[333169916,1721910639649,-231.9,0.00010979,2]
[333169917,1721910639659,-500.0,0.00010979,2]
[333169918,1721910639668,-362.53,0.00010979,2]
[333169919,1721910639677,-443.58,0.00010979,2]
[333169920,1721910639686,-209.08,0.00010979,2]
[333169921,1721910639695,-500.0,0.00010979,2]
[333169922,1721910639705,-500.0,0.00010979,2]
[333169923,1721910639715,-343.81,0.00010979,2]
[333169924,1721910639725,-500.0,0.00010979,2]
[333169925,1721910639735,-215.29,0.00010979,2]
[333169926,1721910639748,-500.0,0.00010979,2]
[333169928,1721910639761,-1182.48,0.00010979,2]
[333169930,1721910639771,-1182.48,0.00010979,2]
[333169932,1721910639780,-500.0,0.00010979,2]
[333169934,1721910639790,-500.0,0.00010979,2]
[333169936,1721910639799,-390.22,0.00010979,2]
[333169938,1721910639809,-500.0,0.00010979,2]
[333169940,1721910639821,-500.0,0.00010979,2]
[333169941,1721910639831,-500.0,0.00010979,2]
[333169944,1721910639841,-500.0,0.00010979,2]
[333169946,1721910639850,-500.0,0.00010979,2]
[333169947,1721910639859,-917.28,0.00010979,2]
[333169949,1721910639868,-855.68,0.00010979,2]
[333169951,1721910639877,-500.0,0.00010979,2]
[333169953,1721910639886,-282.4,0.00010979,2]
[333169955,1721910639896,-500.0,0.00010979,2]
[333169956,1721910639905,-500.0,0.00010979,2]
[333169957,1721910639914,-309.46,0.00010979,2]
[333169959,1721910639923,-500.0,0.00010979,2]
[333169961,1721910639932,-500.0,0.00010979,2]
[333169962,1721910639941,-3117.15,0.00010979,2]
[333169964,1721910639951,-500.0,0.00010979,2]
[333169966,1721910639960,-500.0,0.00010979,2]
[333169968,1721910639969,-500.0,0.00010979,2]
[333169970,1721910639978,-180.29,0.00010979,2]
[333169972,1721910639988,-500.0,0.00010979,2]
[333169974,1721910639997,-241.12,0.00010979,2]
[333169977,1721910640010,-500.0,0.00010979,2]
[333169978,1721910640021,-500.0,0.00010979,2]
[333169981,1721910640030,-500.0,0.00010979,2]
[333169982,1721910640040,-500.0,0.00010979,2]
[333169983,1721910640050,-541.36,0.00010979,2]
[333169984,1721910640059,-500.0,0.00010979,2]
[333169985,1721910640068,-514.94,0.00010979,2]
[333169986,1721910640078,-500.0,0.00010979,2]
[333169987,1721910640087,-737.52,0.00010979,2]
[333169988,1721910640097,-737.52,0.00010979,2]
[333169989,1721910640106,-500.0,0.00010979,2]
[333169990,1721910640116,-500.0,0.00010979,2]
[333169991,1721910640125,-500.0,0.00010979,2]
[333169992,1721910640135,-684.52,0.00010979,2]
[333169993,1721910640144,-500.0,0.00010979,2]
[333169994,1721910640154,-500.0,0.00010979,2]
[333169995,1721910640163,-500.0,0.00010979,2]
[333169996,1721910640173,-500.0,0.00010979,2]
[333169997,1721910640182,-500.0,0.00010979,2]
[333169998,1721910640192,-500.0,0.00010979,2]
[333169999,1721910640202,-597.28,0.00010979,2]
[333170000,1721910640211,-356.62,0.00010979,2]
[333170001,1721910640221,-529.80849113,0.00010979,2]
[333170002,1721910640231,-500.0,0.00010979,2]
[333170003,1721910640240,-500.0,0.00010979,2]
[333170004,1721910640250,-537.07,0.00010979,2]
[333170005,1721910640267,-478.01,0.00010979,2]
[333170008,1721910640277,-167.82612819,0.00010979,2]
[333170009,1721910640287,-500.0,0.00010979,2]
[333170011,1721910640296,-198.79869721,0.00010979,2]
[333170013,1721910640308,-500.0,0.00010979,2]
[333170015,1721910640318,-581.14,0.00010979,2]
[333170017,1721910640327,-500.0,0.00010979,2]
[333170019,1721910640337,-500.0,0.00010979,2]
[333170021,1721910640347,-353.42559531,0.00010979,2]
[333170023,1721910640357,-500.0,0.00010979,2]
[333170025,1721910640366,-500.0,0.00010979,2]
[333170027,1721910640375,-500.0,0.00010979,2]
[333170029,1721910640385,-424.84,0.00010979,2]
[333170031,1721910640394,-346.63344013,0.00010979,2]
[333170033,1721910640404,-500.0,0.00010979,2]
[333170035,1721910640414,-531.3,0.00010979,2]
[333170037,1721910640423,-159.3,0.00010979,2]
[333170039,1721910640432,-500.0,0.00010979,2]
[333170041,1721910640441,-179.7,0.00010979,2]
[333170043,1721910640451,-500.0,0.00010979,2]
[333170044,1721910640460,-500.0,0.00010979,2]
[333170046,1721910640470,-500.0,0.00010979,2]
[333170048,1721910640479,-500.0,0.00010979,2]
[333170050,1721910640489,-500.0,0.00010979,2]
[333170052,1721910640498,-353.73,0.00010979,2]
[333170054,1721910640514,-500.0,0.00010979,2]
[333170056,1721910640523,-500.0,0.00010979,2]
[333170058,1721910640532,-500.0,0.00010979,2]
[333170060,1721910640542,-500.0,0.00010979,2]
[333170062,1721910640551,-500.0,0.00010979,2]
[333170064,1721910640561,-500.0,0.00010979,2]
[333170066,1721910640570,-500.0,0.00010979,2]
[333170068,1721910640579,-500.0,0.00010979,2]
[333170070,1721910640588,-500.0,0.00010979,2]
[333170072,1721910640597,-500.0,0.00010979,2]
[333170074,1721910640607,-500.0,0.00010979,2]
[333170076,1721910640617,-500.0,0.00010979,2]
[333170079,1721910640820,-500.0,0.00010979,2]
[333170080,1721910640830,-500.0,0.00010979,2]
[333170081,1721910640839,-500.0,0.00010979,2]
[333170082,1721910640849,-500.0,0.00010979,2]
[333170083,1721910640859,-500.0,0.00010979,2]
[333170084,1721910640868,-500.0,0.00010979,2]
[333170085,1721910640877,-500.0,0.00010979,2]
[333170086,1721910640886,-500.0,0.00010979,2]
[333170087,1721910640896,-500.0,0.00010979,2]
[333170088,1721910640905,-191.42,0.00010979,2]
[333170089,1721910640915,-500.0,0.00010979,2]
[333170090,1721910640926,-500.0,0.00010979,2]
[333170091,1721910640937,-500.0,0.00010979,2]
[333170092,1721910640947,-549.45632305,0.00010979,2]
[333170093,1721910640957,-500.0,0.00010979,2]
[333170094,1721910640967,-208.55,0.00010979,2]
[333170095,1721910640975,-500.0,0.00010979,2]
[333170096,1721910640985,-500.0,0.00010979,2]
[333170097,1721910640995,-500.0,0.00010979,2]
[333170098,1721910641008,-500.0,0.00010979,2]
[333170099,1721910641017,-500.0,0.00010979,2]
[333170100,1721910641026,-500.0,0.00010979,2]
[333170101,1721910641035,-783.49,0.00010979,2]
[333170102,1721910641044,-500.0,0.00010979,2]
[333170103,1721910641053,-373216.12461265,0.0001098,5]
[333170104,1721910641063,-33429.23433677,0.0001098,5]
[333170105,1721910641072,-1191.0,0.00010986,2]
[333170106,1721910641081,-1359.64852889,0.00010987,2]
[333170107,1721910641091,-500.0,0.00010989,2]
[333170108,1721910641102,-684.52,0.00010989,2]
[333170109,1721910641112,-500.0,0.00010989,2]
[333170110,1721910641121,-500.0,0.00010989,2]
[333170111,1721910641131,-500.0,0.00010989,2]
[333170112,1721910641144,-500.0,0.00010989,2]
[333170113,1721910641153,-531.3,0.00010989,2]
[333170114,1721910641162,-500.0,0.00010989,2]
[333170115,1721910641171,-457.98755876,0.00010989,2]
[333170116,1721910641180,-648.45110507,0.00010989,2]
[333170117,1721910641189,-500.0,0.00010989,2]
[333170118,1721910641198,-500.0,0.00010989,2]
[333170119,1721910641207,-500.0,0.00010989,2]
[333170120,1721910641216,-500.0,0.00010989,2]
[333170121,1721910641228,-500.0,0.00010989,2]
[333170122,1721910641237,-10883.96667531,0.0001099,2]
[333170123,1721910641248,-439.0,0.0001099,3]
[333170124,1721910641263,-1059.82115849,0.0001099,2]
[333170125,1721910641272,-500.0,0.00010996,2]
[333170126,1721910641281,-514.94,0.00010996,2]
[333170127,1721910641290,-500.0,0.00010996,2]
[333170128,1721910641299,-500.0,0.00010996,2]
[333170129,1721910641309,-500.0,0.00010996,2]
[333170130,1721910641318,-500.0,0.00010996,2]
[333170131,1721910641327,-497.0,0.00010996,2]
[333170132,1721910641337,-783.49,0.00010996,2]
[333170133,1721910641346,-180.04,0.00010997,2]
[333170134,1721910641356,-151.89,0.00010997,2]
[333170135,1721910641365,-508.65,0.00010997,2]
[333170136,1721910641374,-917.28,0.00010997,2]
[333170137,1721910641383,-855.68,0.00010997,2]
[333170138,1721910641393,-424.39,0.00010997,2]
[333170139,1721910641402,-500.0,0.00010997,2]
[333170140,1721910641412,-500.0,0.00010997,2]
[333170141,1721910641421,-3117.15,0.00010997,2]
[333170142,1721910641431,-500.0,0.00010997,2]
[333170143,1721910641441,-500.0,0.00010997,2]
[333170144,1721910641450,-588.72,0.00010997,2]
[333170145,1721910641459,-500.0,0.00010997,2]
[333170146,1721910641468,-500.0,0.00010997,2]
[333170147,1721910641478,-500.0,0.00010997,2]
[333170148,1721910641487,-500.0,0.00010997,2]
[333170149,1721910641496,-500.0,0.00010997,2]
[333170150,1721910641510,-500.0,0.00010997,2]
[333170151,1721910641520,-500.0,0.00010997,2]
[333170152,1721910641529,-500.0,0.00010997,2]
[333170153,1721910641538,-500.0,0.00010997,2]
[333170154,1721910641547,-500.0,0.00010997,2]
[333170155,1721910641556,-500.0,0.00010997,2]
[333170156,1721910641566,-500.0,0.00010997,2]
[333170157,1721910641575,-386.47915669,0.00010997,2]
[333170158,1721910641584,-500.0,0.00010997,2]
[333170159,1721910641594,-500.0,0.00010997,2]
[333170160,1721910641603,-477.93718098,0.00010997,2]
[333170161,1721910641613,-500.0,0.00010997,2]
[333170162,1721910641622,-602.81,0.00010997,2]
[333170163,1721910641632,-500.0,0.00010997,2]
[333170164,1721910641641,-500.0,0.00010997,2]
[333170165,1721910641651,-342.37,0.00010997,2]
[333170166,1721910641660,-500.0,0.00010997,2]
[333170167,1721910641670,-500.0,0.00010997,2]
[333170168,1721910641679,-500.0,0.00010997,2]
[333170169,1721910641689,-599.78002956,0.00010997,2]
[333170170,1721910641698,-10877.18823112,0.00010997,2]
[333170171,1721910641707,-60489.5133379,0.00010998,2]
[333170172,1721910641717,-500.0,0.00010998,2]